bitfinex/quotes_ETHUSD_20240902
["timestamp","ask_amount","ask_price","bid_price","bid_amount"]
[1725271737439,0.61270877,2520.7,2520.2,2.77744]
[1725271737653,3.05660877,2520.7,2520.2,2.77744]
[1725271737948,0.30566088,2520.6,2520.3,2.77737]
[1725271738806,0.30566088,2520.6,2520.4,2.77733]
[1725271739056,0.61270877,2520.7,2520.4,2.77733]
[1725271740224,0.61270877,2520.7,2520.3,2.77738]
[1725271740751,0.61270877,2520.7,2520.2,2.77744]
[1725271740955,3.38970877,2520.7,2520.2,2.77744]
[1725271741138,0.33897088,2520.6,2520.2,2.77744]
[1725271741336,0.02086605,2520.5,2520.0,2.77771]
[1725271741513,0.02086605,2520.5,2520.0,5.55542]
[1725271741711,0.02086605,2520.5,2520.0,2.77771]
[1725271741924,0.67145101,2520.5,2520.0,2.77771]
[1725271742126,0.67145101,2520.5,2520.0,5.5554]
[1725271742339,0.67145101,2520.5,2520.1,2.77756]
[1725271742541,0.02086605,2520.5,2520.1,2.77756]
[1725271742708,0.02086605,2520.6,2520.3,2.77744]
[1725271743426,0.02086605,2520.6,2520.2,2.77754]
[1725271743772,0.35983193,2520.6,2520.2,2.77754]
[1725271743976,0.35983193,2520.6,2520.3,2.77743]
[1725271744195,0.02086605,2520.6,2520.3,2.77743]
[1725271744344,0.02086605,2520.6,2520.1,5.55514]
[1725271744544,0.02086605,2520.6,2519.9,2.5001]
[1725271744740,5.48151235,2520.9,2520.4,2.77726]
[1725271744987,0.02086605,2520.7,2520.5,2.77721]
[1725271745191,0.02086605,2520.7,2520.2,2.77747]
[1725271745404,5.4606463,2520.3,2519.8,2.77798]
[1725271745548,5.48151235,2520.6,2520.1,2.7776]
[1725271745847,0.30906528,2520.5,2520.1,2.7776]
[1725271746047,0.02086605,2520.4,2520.1,2.7776]
[1725271747569,0.32993133,2520.5,2520.3,2.77742]
[1725271747883,0.30906528,2520.5,2520.3,2.77742]
[1725271748703,2.3404,2520.4,2520.1,2.7776]
[1725271748908,5.4606463,2520.2,2519.8,2.77798]
[1725271749111,0.02086605,2520.1,2519.6,2.77814]
[1725271749860,2.79853605,2520.1,2519.6,2.77814]
[1725271750065,1.38144324,2520.0,2519.6,2.77814]
[1725271750274,0.02086605,2519.9,2519.6,2.77814]
[1725271750980,2.77812,2519.7,2519.2,2.77861]
[1725271751179,2.77812,2519.7,2519.0,2.77881]
[1725271751180,0.84474268,2519.6,2519.0,5.55759]
[1725271751501,3.62296268,2519.6,2519.0,2.77878]
[1725271751667,0.36229627,2519.5,2519.0,2.77878]
[1725271752013,4.09941046,2519.4,2519.0,5.55758]
[1725271752372,4.09941046,2519.4,2519.1,2.77874]
[1725271752905,4.09941046,2519.4,2519.0,2.77878]
[1725271753106,4.6300554,2519.4,2519.1,2.77875]
[1725271753471,4.6300554,2519.4,2519.0,2.77878]
[1725271754004,0.84474268,2519.6,2519.1,2.77876]
[1725271754209,0.84474268,2519.6,2519.2,2.77864]
[1725271756516,4.09941046,2519.4,2518.8,2.77902]
[1725271756698,0.02086605,2519.3,2518.8,2.77902]
[1725271757519,6.87818046,2519.1,2518.4,2.77946]
[1725271757716,6.87818046,2519.1,2518.4,2.77945]
[1725271757717,0.7086841,2519.0,2518.4,2.77945]
[1725271758189,0.7086841,2519.0,2518.6,2.77931]
[1725271759208,0.7086841,2519.0,2518.7,2.77919]
[1725271759401,6.47841046,2519.1,2518.8,2.77909]
[1725271759402,4.12027651,2519.1,2518.8,2.77909]
[1725271759618,4.12027651,2519.1,2518.6,2.77922]
[1725271759916,4.09941046,2519.1,2518.8,2.77908]
[1725271760219,6.60177651,2519.4,2519.0,2.7788]
[1725271762093,4.12027651,2519.4,2519.1,2.77875]
[1725271762402,4.12027651,2519.4,2518.9,2.77889]
[1725271762588,0.41202765,2519.3,2518.9,2.77889]
[1725271763104,0.02086605,2519.2,2518.9,2.77889]
[1725271763499,0.4328937,2519.3,2518.9,5.55779]
[1725271763807,0.45114381,2519.2,2518.9,2.77889]
[1725271765199,0.02086605,2519.1,2518.7,2.77911]
[1725271765399,0.34592404,2519.1,2518.7,2.77911]
[1725271765594,4.4453345,2519.1,2518.7,2.77911]
[1725271765806,4.4453345,2519.1,2518.5,2.77939]
[1725271766002,2.3595,2519.0,2518.6,2.7793]
[1725271766297,0.7013495,2518.9,2518.6,2.7793]
[1725271766637,0.7013495,2518.9,2518.5,2.77934]
[1725271768097,0.7013495,2518.9,2518.6,2.77923]
[1725271768293,0.02086605,2518.9,2518.7,2.7792]
[1725271768530,0.02086605,2519.0,2518.7,2.7792]
[1725271769251,0.02086605,2519.0,2518.7,5.55833]
[1725271769544,0.02086605,2519.0,2518.7,5.55827]
[1725271769845,0.51051388,2519.0,2518.7,5.55827]
[1725271770046,0.51051388,2519.0,2518.7,2.77913]
[1725271772703,0.51051388,2519.0,2518.7,5.55826]
[1725271773103,2.4357,2519.3,2519.1,2.77868]
[1725271773401,2.77818,2519.7,2519.1,2.77868]
[1725271773402,4.09941046,2519.4,2519.1,2.77868]
[1725271773600,4.12027651,2519.4,2519.1,2.77868]
[1725271773819,4.12027651,2519.4,2518.9,2.77891]
[1725271774054,4.09941046,2519.1,2518.9,2.77891]
[1725271774702,4.09941046,2519.1,2519.0,2.77888]
[1725271775965,4.09941046,2519.4,2519.2,2.77858]
[1725271776127,4.09941046,2519.4,2519.3,2.77854]
[1725271776323,0.02086605,2519.7,2519.4,5.55679]
[1725271776523,2.535,2520.1,2519.4,5.55679]
[1725271776524,4.09941046,2519.8,2519.4,2.77837]
[1725271776726,4.09941046,2519.5,2519.4,2.77837]
[1725271777006,4.09941046,2519.5,2519.0,2.7788]
[1725271777241,4.09941046,2519.2,2519.0,2.7788]
[1725271779474,4.09941046,2519.2,2518.8,2.77902]
[1725271779679,0.02086605,2519.4,2518.9,2.4434]
[1725271779887,4.09941046,2519.8,2519.3,2.77854]
[1725271780041,4.09941046,2519.8,2519.6,2.77819]
[1725271780399,4.09941046,2519.8,2519.7,2.7781]
[1725271781181,4.09941046,2520.1,2519.8,2.77794]
[1725271781496,4.51143811,2520.1,2519.8,2.77794]
[1725271781800,4.51143811,2520.1,2519.6,2.77812]
[1725271782857,4.51143811,2520.1,2519.9,2.77781]
[1725271783080,4.09941046,2520.1,2519.9,2.77781]
[1725271784385,2.4909,2520.4,2519.9,5.20441]
[1725271784386,4.12027651,2520.4,2519.9,5.20441]
[1725271784593,4.09941046,2520.4,2519.9,5.20441]
[1725271784742,4.51143811,2520.4,2520.2,2.77755]
[1725271784943,4.51143811,2520.4,2520.1,2.77758]
[1725271786576,4.51143811,2520.4,2519.9,2.77783]
[1725271786902,4.09941046,2520.1,2519.7,2.77803]
[1725271787465,4.09941046,2520.1,2519.7,5.55606]
[1725271787666,4.09941046,2520.1,2519.8,2.77799]
[1725271788951,4.09941046,2520.1,2519.7,2.77803]
[1725271789266,4.09941046,2520.1,2519.7,2.77802]
[1725271789482,4.09941046,2520.4,2520.0,2.77777]
[1725271790584,4.09941046,2520.4,2520.0,2.77769]
[1725271791481,0.02086605,2520.3,2520.0,2.77769]
[1725271792329,4.09941046,2520.4,2520.0,2.77769]
[1725271792330,4.12027651,2520.4,2520.0,2.77769]
[1725271792535,0.40994105,2520.3,2520.0,2.77769]
[1725271794126,0.40994105,2520.3,2520.1,2.77763]
[1725271794326,4.09941046,2520.4,2520.2,2.77752]
[1725271794531,4.09941046,2520.4,2520.2,2.77749]
[1725271795240,4.12027651,2520.7,2520.4,2.77727]
[1725271795412,4.65122612,2520.7,2520.4,2.77727]
[1725271796132,4.09941046,2521.3,2520.9,2.77678]
[1725271796313,0.02086605,2521.2,2520.7,2.77691]
[1725271796512,0.02086605,2521.2,2520.8,2.77686]
[1725271796708,0.9521417,2521.2,2520.8,2.77686]
[1725271797123,4.09941046,2521.0,2520.8,2.77686]
[1725271797438,4.09941046,2521.0,2520.8,2.77682]
[1725271797825,4.09941046,2521.3,2520.8,2.4071]
[1725271798032,4.09941046,2521.3,2521.2,2.77645]
[1725271798255,4.12027651,2521.6,2521.3,2.77632]
[1725271798541,4.39070351,2521.6,2521.3,2.77627]
[1725271798969,4.39070351,2521.6,2521.5,2.77612]
[1725271799243,0.02086605,2521.9,2521.5,2.77612]
[1725271799427,0.02086605,2521.9,2521.6,2.77591]
[1725271799636,0.02086605,2521.9,2521.4,2.77618]
[1725271799800,6.58791046,2521.8,2521.4,2.77618]
[1725271800003,0.66087765,2521.7,2521.4,2.77618]
[1725271800262,0.66087765,2521.7,2521.4,2.77615]
[1725271800443,4.09941046,2521.8,2521.4,2.77615]
[1725271800614,4.12027651,2521.8,2521.4,2.77615]
[1725271800997,4.09941046,2521.8,2521.6,2.77593]
[1725271801202,0.02086605,2521.9,2521.6,2.77593]
[1725271801521,0.25093661,2521.9,2521.6,2.77593]
[1725271801843,0.25093661,2521.9,2521.7,2.77588]
[1725271802057,2.3019,2522.7,2521.7,2.4453]
[1725271802248,4.1119413,2522.8,2522.4,2.77504]
[1725271802462,4.09107525,2522.8,2522.6,2.77491]
[1725271803357,4.09107525,2523.1,2522.9,2.77455]
[1725271804740,4.09107525,2523.1,2522.9,2.77449]
[1725271804946,4.09107525,2523.1,2523.0,2.77447]
[1725271805161,4.77362,2523.8,2523.2,2.77423]
[1725271805448,4.77362,2523.8,2523.1,2.77436]
[1725271805449,4.09107525,2523.6,2523.1,2.77436]
[1725271805744,0.02086605,2523.5,2523.1,2.77429]
[1725271805950,0.48666723,2523.5,2523.1,2.77429]
[1725271806444,0.48666723,2523.5,2523.1,2.77427]
[1725271806856,0.48666723,2523.5,2523.1,5.54855]
[1725271807004,0.48666723,2523.5,2523.1,2.77427]
[1725271807208,0.48666723,2523.5,2523.2,2.77424]
[1725271807534,0.45986085,2523.4,2523.1,2.77427]
[1725271808135,0.45986085,2523.4,2523.2,2.77424]
[1725271808363,4.1119413,2523.6,2523.1,2.77427]
[1725271808364,4.1119413,2523.6,2523.3,2.77414]
[1725271809121,4.09107525,2523.6,2523.3,2.77414]
[1725271809771,3.26570659,2523.5,2522.7,2.77476]
[1725271809925,4.09107525,2523.2,2522.7,2.77476]
[1725271810119,0.68652953,2523.1,2522.7,2.77476]
[1725271810323,4.09107525,2523.2,2522.7,2.77469]
[1725271810525,4.09107525,2523.2,2522.9,2.77451]
[1725271810748,4.1119413,2523.5,2523.1,2.77436]
[1725271810933,4.09107525,2523.5,2523.3,2.77413]
[1725271811265,4.82731248,2523.5,2523.3,2.77413]
[1725271811487,4.82731248,2523.5,2523.2,2.77417]
[1725271811768,4.82731248,2523.5,2523.1,2.77436]
[1725271812072,4.82731248,2523.5,2523.2,2.77424]
[1725271812073,0.48481785,2523.4,2523.2,2.77424]
[1725271812238,4.09107525,2523.5,2523.2,2.77424]
[1725271812440,0.754731,2523.7,2523.3,5.25732922]
[1725271812639,0.754731,2523.7,2523.5,2.77391]
[1725271814525,4.09107525,2523.8,2523.5,2.77391]
[1725271815231,4.3329,2524.6,2523.7,2.77361]
[1725271815469,2.77293,2524.4,2523.8,0.277361]
[1725271815799,0.02086605,2524.3,2523.7,2.77361]
[1725271815962,0.02086605,2524.5,2523.8,2.50584097]
[1725271816296,2.65922369,2524.6,2524.2,2.77315]
[1725271816297,0.34718974,2524.6,2524.2,2.77315]
[1725271816505,0.02086605,2524.5,2524.1,2.77317]
[1725271816851,0.02086605,2524.5,2523.8,2.4266]
[1725271816852,0.02086605,2524.8,2524.4,2.77288]
[1725271817163,0.02086605,2524.8,2524.5,2.77281]
[1725271817369,2.4406,2525.7,2525.0,2.77222]
[1725271817686,2.4406,2525.7,2525.3,2.77184]
[1725271817687,0.02086605,2525.7,2525.3,2.77184]
[1725271817917,0.02086605,2525.7,2525.3,5.54369]
[1725271818199,0.02086605,2525.7,2525.3,2.77184]
[1725271818559,2.79244605,2525.7,2525.1,2.77213]
[1725271819163,2.77168,2525.6,2524.9,5.19893]
[1725271819497,6.8836713,2525.5,2524.9,2.77231]
[1725271819710,0.02086605,2525.5,2524.9,2.77231]
[1725271820010,2.3182,2525.4,2524.5,2.77275]
[1725271820303,2.77217,2525.1,2524.5,2.77275]
[1725271820448,2.77207,2525.2,2524.5,2.77275]
[1725271820649,2.7724,2524.9,2524.0,2.3449]
[1725271820859,0.02086605,2525.0,2524.3,2.77304]
[1725271821101,0.02086605,2525.0,2524.1,2.77324]
[1725271821102,2.77257,2524.8,2524.1,2.77324]
[1725271821296,0.02086605,2524.7,2524.2,2.77315]
[1725271821460,0.02086605,2524.8,2524.3,2.77304]
[1725271821670,0.29810505,2524.8,2524.3,2.77304]
[1725271821886,0.277239,2524.8,2524.5,2.77281]
[1725271822073,0.02086605,2525.2,2524.8,2.77249]
[1725271822403,0.02086605,2525.2,2524.7,2.77258]
[1725271822551,0.81110261,2525.2,2524.7,0.07920969]
[1725271822751,2.79281605,2525.3,2524.6,5.54526]
[1725271822958,0.02086605,2525.3,2524.8,2.77248]
[1725271823160,0.87165574,2525.3,2524.8,2.77248]
[1725271823808,0.87165574,2525.3,2524.9,2.7723]
[1725271823809,0.85078969,2525.3,2524.9,2.7723]
[1725271823975,0.02086605,2525.2,2524.7,2.77259]
[1725271824175,2.79298605,2525.2,2524.5,2.77275]
[1725271824411,0.55650161,2525.1,2524.5,2.77275]
[1725271824961,0.55650161,2525.1,2524.7,2.7726]
[1725271825389,0.02086605,2525.2,2524.8,2.4719]
[1725271825571,0.64610687,2525.5,2525.1,2.77215]
[1725271825775,0.62524082,2525.5,2525.1,2.77209]
[1725271825974,0.62524082,2525.5,2525.2,2.77197]
[1725271826220,7.0958,2526.1,2525.3,2.77186]
[1725271826359,2.79211605,2526.0,2525.3,2.77186]
[1725271826566,2.79211605,2526.0,2525.3,2.77185]
[1725271826786,2.79211605,2526.0,2525.4,2.77183]
[1725271826787,0.98879161,2525.9,2525.4,2.77183]
[1725271827106,0.98879161,2525.9,2525.5,2.77171]
[1725271827107,0.02086605,2525.8,2525.5,2.77171]
[1725271827727,2.77089,2526.3,2525.6,0.07918901]
[1725271827883,0.02086605,2526.3,2525.7,2.77142]
[1725271828230,5.46181313,2526.4,2525.9,2.77121]
[1725271828509,6.51544484,2526.4,2525.9,2.77121]
[1725271829008,2.50237408,2526.9,2526.0,0.62917297]
[1725271829009,5.27662,2526.9,2526.0,0.62917297]
[1725271829320,2.77048,2526.7,2526.1,2.77098]
[1725271829610,0.30000065,2526.6,2526.1,2.77098]
[1725271829776,0.30000065,2526.6,2526.1,5.54195]
[1725271829982,0.30000065,2526.6,2526.1,2.77097]
[1725271830713,0.02086605,2526.6,2526.1,2.77097]
[1725271830873,2.79134605,2526.7,2526.1,2.77097]
[1725271831069,2.77066,2526.5,2526.0,0.55]
[1725271831299,0.02086605,2526.4,2525.6,5.4338]
[1725271831497,3.32686061,2526.5,2525.7,0.55]
[1725271831707,2.77066,2526.5,2525.7,0.55]
[1725271831887,0.02086605,2526.4,2525.7,0.55]
[1725271832224,0.02086605,2526.4,2525.9,2.77122]
[1725271832371,0.02086605,2526.4,2525.7,0.55]
[1725271832372,2.79166605,2526.4,2525.8,2.77139]
[1725271832573,0.02086605,2526.4,2525.8,0.07917266]
[1725271832885,0.02086605,2526.4,2525.9,2.77126]
[1725271835021,2.79139605,2526.6,2526.0,2.77108]
[1725271835511,2.79131605,2526.7,2526.0,2.77108]
[1725271835707,6.28950105,2526.7,2526.0,2.77108]
[1725271835914,2.77053,2526.6,2525.9,2.77126]
[1725271836116,2.79139605,2526.6,2525.9,2.7712]
[1725271836291,0.02086605,2526.6,2526.0,2.77116]
[1725271836817,2.79139605,2526.6,2526.0,2.77117]
[1725271837201,0.02086605,2526.6,2526.0,2.85033753]
[1725271837523,2.79147605,2526.6,2525.9,3.13394973]
[1725271837881,0.02086605,2526.6,2526.0,2.85032751]
[1725271838486,2.79139605,2526.6,2526.0,0.07916751]
[1725271838686,0.64981716,2526.6,2526.0,2.85033751]
[1725271839205,0.64981716,2526.6,2526.0,0.07916751]
[1725271839423,2.4688,2526.0,2525.1,2.77208]
[1725271839630,8.21251708,2525.7,2524.9,2.77232]
[1725271839785,8.21251708,2525.7,2524.7,2.77258]
[1725271839786,2.77194,2525.3,2524.7,2.77258]
[1725271839986,4.10134687,2525.2,2524.7,2.77253]
[1725271840592,4.10134687,2525.2,2524.9,2.77237]
[1725271840593,4.08048082,2525.2,2524.9,2.77237]
[1725271840879,4.08048082,2525.5,2525.2,2.77203]
[1725271841086,2.77112,2526.1,2525.4,2.77173]
[1725271841087,4.08048082,2525.8,2525.4,2.77173]
[1725271841330,4.08048082,2525.8,2525.2,2.77198]
[1725271841482,4.08048082,2525.5,2525.1,2.77206]
[1725271842186,2.46346605,2525.6,2525.1,2.77206]
[1725271842490,3.02798112,2525.6,2525.0,2.77217]
[1725271843026,3.02798112,2525.6,2525.0,5.54437]
[1725271843225,1.12392552,2525.5,2525.0,5.54437]
[1725271843423,0.02086605,2525.4,2525.0,5.54437]
[1725271843631,3.00711507,2525.6,2525.1,0.07919573]
[1725271843930,2.4426,2525.6,2525.3,2.77187]
[1725271844090,2.4426,2525.6,2525.1,0.07919573]
[1725271844091,5.43968403,2525.7,2525.4,2.77176]
[1725271844282,0.02086605,2525.9,2525.4,2.77176]
[1725271844481,0.54223405,2525.9,2525.6,2.77155]
[1725271844695,0.54223405,2525.9,2525.4,2.77176]
[1725271844893,5.43968403,2526.4,2525.8,2.77139]
[1725271845106,0.02086605,2526.3,2525.8,2.77139]
[1725271845315,1.36531606,2526.3,2525.8,2.77139]
[1725271845735,1.36531606,2526.3,2525.6,2.77155]
[1725271845736,0.02086605,2526.2,2525.6,2.77155]
[1725271846039,7.88228403,2526.1,2525.4,5.54354]
[1725271846189,0.02086605,2526.0,2525.4,2.77175]
[1725271846591,0.02086605,2526.0,2525.5,2.77171]
[1725271846792,0.02086605,2526.0,2525.6,2.77154]
[1725271847045,0.02086605,2526.0,2525.7,2.77147]
[1725271847046,1.18319011,2526.0,2525.7,2.77147]
[1725271847197,1.18319011,2526.0,2525.8,2.77137]
[1725271848206,1.18319011,2526.0,2525.6,5.54308]
[1725271848207,1.20405616,2526.0,2525.6,5.54308]
[1725271848599,1.20405616,2526.0,2525.6,5.54309]
[1725271849196,1.20405616,2526.0,2525.6,2.77154]
[1725271849391,1.20405616,2526.0,2525.4,2.77179]
[1725271849392,0.90863402,2525.9,2525.4,2.77179]
[1725271849615,0.02086605,2525.8,2525.4,2.77179]
[1725271850447,2.79233605,2525.8,2525.2,2.772]
[1725271850612,2.71256306,2525.7,2525.2,5.54399]
[1725271850802,2.71256306,2525.7,2525.3,2.77186]
[1725271850995,0.39096306,2525.7,2525.4,2.77182]
[1725271851202,0.92950007,2525.9,2525.6,2.77161]
[1725271851514,0.90863402,2525.9,2525.6,2.77154]
[1725271851730,4.77037,2526.8,2526.1,2.77099]
[1725271851935,5.46055008,2526.7,2526.1,5.54199]
[1725271852109,6.16756708,2526.7,2526.2,2.77085]
[1725271852745,6.16756708,2526.7,2526.3,2.77081]
[1725271853817,6.16756708,2526.7,2526.1,2.77097]
[1725271854139,0.89378671,2526.6,2526.1,5.54197]
[1725271854341,0.89378671,2526.6,2526.2,2.77094]
[1725271854342,0.02086605,2526.5,2526.2,2.77094]
[1725271854630,0.72700143,2526.5,2526.1,2.77097]
[1725271855039,0.62718506,2526.5,2526.1,5.54196]
[1725271855357,0.62718506,2526.5,2526.1,2.77097]
[1725271855856,0.62718506,2526.5,2526.1,5.54197]
[1725271856034,0.62718506,2526.5,2526.1,2.77097]
[1725271856443,2.5003,2526.4,2525.8,2.77135]
[1725271856674,0.31274851,2526.3,2525.9,2.7712]
[1725271856956,2.5003,2526.4,2525.9,2.7712]
[1725271857721,5.27104,2526.4,2525.9,2.7712]
[1725271858328,2.5003,2526.4,2525.9,2.7712]
[1725271858733,2.5003,2526.4,2525.9,5.54242]
[1725271859120,2.5003,2526.4,2526.0,2.77114]
[1725271859833,2.4913,2526.9,2526.1,2.47697689]
[1725271860020,2.4913,2527.2,2526.9,2.77017]
[1725271860362,0.1244838,2527.3,2527.2,2.76986]
[1725271861229,0.1244838,2527.3,2527.2,5.53972]
[1725271861628,0.1244838,2527.3,2527.0,0.07912898]
[1725271861629,0.1244838,2527.3,2527.1,2.76987]
[1725271861866,0.1244838,2527.3,2527.2,2.76986]
[1725271862288,0.1244838,2527.3,2527.1,2.76987]
[1725271862981,0.1244838,2527.3,2527.2,5.61885319]
[1725271866484,0.1244838,2527.3,2527.2,8.93871319]
[1725271867188,0.1244838,2527.3,2527.2,5.53972]
[1725271867649,0.1244838,2527.3,2527.2,2.76986]
[1725271868165,0.1244838,2527.3,2527.2,7.81652]
[1725271868333,0.1244838,2527.3,2527.2,9.47960787]
[1725271868859,0.1244838,2527.3,2527.2,12.24946787]
[1725271869066,0.1244838,2527.3,2527.2,15.24946787]
[1725271869237,0.1244838,2527.3,2527.2,12.47960787]
[1725271870335,0.1244838,2527.3,2527.2,2.76986]
[1725271870597,0.1244838,2527.3,2527.0,2.76998]
[1725271870598,0.1244838,2527.3,2527.1,2.76995]
[1725271870730,0.1244838,2527.3,2526.8,2.3497]
[1725271870935,0.1244838,2527.3,2527.2,5.53972]
[1725271871942,0.1244838,2527.3,2527.2,8.85958]
[1725271872253,0.1244838,2527.3,2527.2,7.26059656]
[1725271872434,0.1244838,2527.3,2527.2,6.71059656]
[1725271872638,0.1244838,2527.3,2527.2,9.71059656]
[1725271873155,3.8e-06,2527.3,2527.2,14.86575656]
[1725271873470,3.8e-06,2527.3,2527.2,15.41575656]
[1725271873847,2.8915938,2529.8,2527.4,2.3562]
[1725271874091,2.8915738,2529.8,2529.1,2.76767]
[1725271874251,2.419,2529.6,2529.1,2.76767]
[1725271874445,2.419,2529.6,2528.6,2.3701]
[1725271874446,2.419,2529.6,2529.2,2.76766]
[1725271874871,2.419,2529.6,2529.3,2.76755]
[1725271875262,2.419,2529.6,2529.4,2.76744]
[1725271875661,0.1244838,2529.8,2529.3,2.76755]
[1725271875662,0.1244838,2529.8,2529.3,2.76756]
[1725271876150,0.1244838,2529.8,2529.1,2.7677]
[1725271876659,0.1244838,2529.8,2529.3,2.76754]
[1725271876862,1.18961758,2529.8,2529.3,2.76754]
[1725271877206,1.18961758,2529.8,2529.5,2.76733]
[1725271877491,0.1244838,2529.8,2529.5,2.76733]
[1725271877672,2.5840838,2529.8,2529.3,2.76754]
[1725271878591,2.5840838,2529.8,2529.1,5.53538]
[1725271878792,5.97478341,2529.7,2529.1,2.76768]
[1725271878980,5.97478341,2529.7,2529.2,2.76765]
[1725271879386,5.97478341,2529.7,2529.2,2.76766]
[1725271879701,5.97478341,2529.7,2529.1,2.76768]
[1725271879702,8.74197341,2529.7,2528.9,2.76791]
[1725271879867,1.13258872,2529.6,2528.9,2.76791]
[1725271880288,1.13258872,2529.6,2529.1,2.76777]
[1725271880804,2.4596,2528.9,2527.8,2.4472]
[1725271881007,2.4596,2528.9,2528.2,2.76876]
[1725271881008,5.43968403,2528.7,2528.2,2.76876]
[1725271881149,2.4596,2528.9,2528.4,2.76847]
[1725271882251,2.4596,2528.9,2527.8,2.76912]
[1725271882252,2.76863,2528.4,2527.8,2.76912]
[1725271882451,5.07313,2528.4,2527.8,2.76912]
[1725271882759,2.3045,2528.4,2527.9,2.76909]
[1725271882963,0.23045,2528.3,2527.8,2.76912]
[1725271883169,2.9991,2528.3,2527.8,2.76919]
[1725271883396,0.23045,2528.3,2527.8,2.76919]
[1725271883569,2.99918,2528.3,2527.6,2.7694]
[1725271883764,0.807231,2528.2,2527.6,5.53874]
[1725271884151,0.807231,2528.2,2527.7,2.76931]
[1725271885690,0.807231,2528.2,2527.8,2.76917]
[1725271885896,2.3045,2528.4,2528.0,2.76898]
[1725271887303,2.5208,2528.8,2528.3,2.76857]
[1725271887951,2.5208,2528.8,2528.3,5.53716]
[1725271888169,2.5208,2528.8,2527.9,2.76904]
[1725271888170,2.76846,2528.5,2527.9,2.76904]
[1725271888351,2.5208,2528.8,2527.7,2.76924]
[1725271888352,2.76862,2528.4,2527.7,2.76924]
[1725271888610,9.96048403,2528.3,2527.3,2.76964]
[1725271888806,2.769,2528.0,2527.3,2.76964]
[1725271889108,2.769,2528.0,2527.2,2.76977]
[1725271889109,2.76919,2527.9,2527.2,2.76977]
[1725271889257,5.23028,2527.8,2527.2,2.76977]
[1725271889452,6.030227,2527.8,2527.2,2.76977]
[1725271889652,3.260947,2527.8,2527.2,2.76977]
[1725271890059,3.260947,2527.8,2527.3,2.76967]
[1725271890397,5.22992,2528.1,2527.5,2.76952]
[1725271890617,5.22992,2528.1,2527.3,2.76967]
[1725271890822,8.20884403,2527.9,2527.3,2.76967]
[1725271891123,10.97802403,2527.9,2527.3,2.76967]
[1725271891412,8.20884403,2527.9,2527.3,2.76967]
[1725271891631,2.76929,2527.8,2527.1,5.53981]
[1725271891785,10.20884403,2527.9,2526.7,5.77038]
[1725271891786,2.76943,2527.6,2526.9,2.77011]
[1725271891986,2.76968,2527.4,2526.7,2.77039]
[1725271892167,0.276968,2527.3,2526.7,2.77032]
[1725271892506,0.276968,2527.3,2526.9,2.77011]
[1725271892714,2.76957,2527.5,2526.9,2.77011]
[1725271893010,2.76964,2527.4,2526.7,2.77033]
[1725271893789,4.461,2527.6,2526.8,0.079148]
[1725271894110,8.20887403,2527.9,2527.4,2.76963]
[1725271894111,7.74998403,2527.9,2527.4,2.76963]
[1725271894269,9.00188643,2527.9,2527.4,2.76963]
[1725271894913,7.74998403,2527.9,2527.4,2.76963]
[1725271895116,5.43968403,2527.9,2527.4,5.53918]
[1725271895286,5.43968403,2527.9,2527.5,2.76952]
[1725271895487,5.43968403,2527.9,2527.4,5.5391]
[1725271895899,5.43968403,2527.9,2527.4,2.76955]
[1725271896304,5.43968403,2527.9,2527.6,2.76941]
[1725271896512,2.76897,2528.1,2527.4,2.7696]
[1725271896809,4.0977744,2528.0,2527.4,2.7696]
[1725271897113,1.3287744,2528.0,2527.2,2.76977]
[1725271897308,4.0978244,2528.0,2527.2,3.05465965]
[1725271897512,4.0978244,2528.0,2527.3,2.76972]
[1725271897709,2.7691,2527.9,2527.3,2.76972]
[1725271897915,4.0978244,2528.0,2527.3,2.76972]
[1725271898216,4.0978244,2528.0,2527.4,2.76962]
[1725271898375,1.3287744,2528.0,2527.5,2.76946]
[1725271898571,10.51877403,2528.2,2527.6,2.76938]
[1725271898933,44.4150926,2531.1,2528.1,2.76884]
[1725271898934,2.7682,2528.8,2528.1,2.76884]
[1725271899237,2.7682,2528.8,2527.9,2.76899]
[1725271899238,2.76833,2528.6,2527.9,2.76899]
[1725271899405,2.76833,2528.6,2527.5,0.3046577]
[1725271899406,2.76855,2528.4,2527.8,2.76919]
[1725271899586,2.76816,2528.8,2528.0,2.7689]
[1725271899785,3.87270424,2528.8,2528.1,2.76877]
[1725271899991,3.87270424,2528.8,2528.0,2.7689]
[1725271900201,2.0,2528.7,2528.0,2.7689]
[1725271900522,5.95385567,2528.7,2528.0,2.7689]
[1725271900814,1.10454424,2528.8,2528.0,2.4649]
[1725271901002,2.76801,2528.9,2528.3,2.76857]
[1725271901186,2.76782,2529.1,2527.6,2.4649]
[1725271901187,2.3176,2528.5,2527.6,2.4649]
[1725271901389,0.7757284,2528.4,2527.5,3.0741677]
[1725271901608,0.7757284,2528.4,2527.5,3.0741577]
[1725271901847,0.7757284,2528.4,2527.8,2.76919]
[1725271902027,4.76874,2528.3,2527.6,2.76942]
[1725271902315,0.30933284,2528.3,2527.6,2.76941]
[1725271902476,0.30933284,2528.3,2527.8,2.76919]
[1725271902876,0.30933284,2528.3,2527.5,0.3046577]
[1725271902877,0.7757284,2528.4,2527.9,2.76908]
[1725271903156,2.76804,2528.9,2527.9,2.76908]
[1725271903157,0.1244838,2529.8,2529.2,2.4145]
[1725271903441,0.1244838,2529.8,2529.7,5.53424]
[1725271903654,0.1244838,2529.8,2529.7,7.94874]
[1725271903955,0.1244838,2529.8,2529.4,3.0]
[1725271903956,0.1244838,2529.8,2529.4,2.76744]
[1725271904117,0.1244838,2529.8,2529.5,2.84633815]
[1725271904298,0.1244838,2529.8,2529.7,2.76712]
[1725271904500,0.1244838,2529.8,2529.7,5.53424]
[1725271905243,0.1244838,2529.8,2529.7,2.76712]
[1725271905824,0.1244838,2529.8,2529.7,5.53424]
[1725271906235,0.1244838,2529.8,2529.7,6.087664]
[1725271906503,0.1244838,2529.8,2529.7,2.76712]
[1725271906699,0.1244838,2529.8,2529.4,2.76745]
[1725271906700,0.1244838,2529.8,2529.5,2.76729]
[1725271907040,0.1244838,2529.8,2529.6,2.76721]
[1725271907340,0.1244838,2529.8,2529.7,2.76712]